lending/lending_fUSD_20250121
["ID","MTS","AMOUNT","RATE_DAILY","PERIOD"]
[349824379,1737453040122,-500.0,0.00019178,2]
[349824380,1737453040131,-510.56865333,0.00019178,2]
[349824381,1737453040141,-500.0,0.00019178,2]
[349824382,1737453040153,-500.0,0.00019178,2]
[349824383,1737453040162,-500.0,0.00019178,2]
[349824384,1737453040171,-500.0,0.00019178,2]
[349824385,1737453040181,-500.0,0.00019178,2]
[349824386,1737453040191,-500.0,0.00019178,2]
[349824387,1737453040201,-2047.13,0.00019178,2]
[349824388,1737453040212,-794.2,0.00019178,2]
[349824389,1737453040222,-505.01277674,0.00019178,2]
[349824390,1737453040232,-2863.94,0.00019178,2]
[349824391,1737453040242,-500.0,0.00019178,2]
[349824392,1737453040252,-772.25,0.00019178,2]
[349824393,1737453040262,-1251.75,0.00019178,2]
[349824394,1737453040272,-500.0,0.00019178,2]
[349824395,1737453040282,-500.0,0.00019178,2]
[349824396,1737453040291,-660.36,0.00019178,2]
[349824397,1737453040301,-500.0,0.00019178,2]
[349824398,1737453040311,-498.51598058,0.00019178,2]
[349824399,1737453040320,-500.0,0.00019178,2]
[349824400,1737453040329,-616.64,0.00019178,2]
[349824401,1737453040339,-500.0,0.00019178,2]
[349824402,1737453040348,-500.0,0.00019178,2]
[349824403,1737453040358,-1546.15,0.00019178,2]
[349824404,1737453040367,-500.0,0.00019178,2]
[349824405,1737453040377,-500.0,0.00019178,2]
[349824406,1737453040387,-500.0,0.00019178,2]
[349824407,1737453040396,-1902.27,0.00019178,2]
[349824408,1737453040413,-500.0,0.00019178,2]
[349824409,1737453040423,-500.0,0.00019178,2]
[349824410,1737453040432,-2420.73,0.00019178,2]
[349824411,1737453040443,-502.95655556,0.00019178,2]
[349824412,1737453040452,-1018.36,0.00019178,2]
[349824413,1737453040462,-582.48,0.00019178,2]
[349824414,1737453040472,-500.0,0.00019178,2]
[349824415,1737453040482,-500.0,0.00019178,2]
[349824416,1737453040491,-500.0,0.00019178,2]
[349824417,1737453040501,-500.0,0.00019178,2]
[349824419,1737453040510,-500.0,0.00019178,2]
[349824421,1737453040644,-500.0,0.00019178,2]
[349824423,1737453040657,-3026.82,0.00019178,2]
[349824426,1737453040667,-541.03716493,0.00019178,2]
[349824427,1737453040677,-500.0,0.00019178,2]
[349824429,1737453040686,-500.0,0.00019178,2]
[349824431,1737453040697,-1503.31,0.00019178,2]
[349824433,1737453040707,-500.0,0.00019178,2]
[349824435,1737453040716,-500.0,0.00019178,2]
[349824437,1737453040726,-1719.86,0.00019178,2]
[349824440,1737453040737,-500.0,0.00019178,2]
[349824442,1737453040748,-502.57267983,0.00019178,2]
[349824443,1737453040758,-500.0,0.00019178,2]
[349824445,1737453040767,-500.0,0.00019178,2]
[349824447,1737453040778,-500.0,0.00019178,2]
[349824449,1737453040787,-500.0,0.00019178,2]
[349824451,1737453040795,-500.0,0.00019178,2]
[349824453,1737453040805,-544.81,0.00019178,2]
[349824455,1737453040815,-500.0,0.00019178,2]
[349824457,1737453040825,-500.0,0.00019178,2]
[349824459,1737453040834,-367.81054071,0.00019178,2]
[349824461,1737453040844,-500.0,0.00019178,2]
[349824463,1737453040853,-500.0,0.00019178,2]
[349824465,1737453040862,-582.92,0.00019178,2]
[349824467,1737453040872,-500.0,0.00019178,2]
[349824469,1737453040881,-8.60744817,0.00019178,2]
[349824502,1737453041187,-321.94923553,0.00019178,2]
[349824504,1737453041199,-172.41988351,0.00019178,2]
[349824506,1737453041209,-500.0,0.00019178,2]
[349824508,1737453041218,-1092.14,0.00019178,2]
[349824510,1737453041228,-500.0,0.00019178,2]
[349824512,1737453041237,-500.0,0.00019178,2]
[349824514,1737453041246,-511.88984396,0.00019178,2]
[349824516,1737453041255,-507.7114738,0.00019178,2]
[349824518,1737453041264,-369.66807224,0.00019178,2]
[349824520,1737453041276,-131.39590984,0.00019178,2]
[349824522,1737453041285,-500.0,0.00019178,2]
[349824525,1737453041295,-500.0,0.00019178,2]
[349824526,1737453041304,-500.0,0.00019178,2]
[349824529,1737453041314,-408.43248775,0.00019178,2]
[349824530,1737453041330,-91.56751225,0.00019178,2]
[349824531,1737453041339,-500.0,0.00019178,2]
[349824532,1737453041349,-1250.96,0.00019178,2]
[349824533,1737453041358,-1590.94,0.00019178,2]
[349824534,1737453041367,-1136.38,0.00019178,2]
[349824535,1737453041377,-500.0,0.00019178,2]
[349824536,1737453041387,-373.00054062,0.00019178,2]
[349824537,1737453041396,-500.0,0.00019178,2]
[349824538,1737453041408,-500.0,0.00019178,2]
[349824539,1737453041418,-500.0,0.00019178,2]
[349824540,1737453041427,-500.0,0.00019178,2]
[349824541,1737453041437,-500.0,0.00019178,2]
[349824542,1737453041446,-2747.31,0.00019178,2]
[349824543,1737453041455,-500.0,0.00019178,2]
[349824544,1737453041465,-321.34195063,0.00019178,2]
[349824545,1737453041477,-189.42218686,0.00019178,2]
[349824546,1737453041486,-176.43038626,0.00019178,2]
[349824547,1737453041496,-323.56961374,0.00019178,2]
[349824548,1737453041505,-500.0,0.00019178,2]
[349824549,1737453041515,-3033.52,0.00019178,2]
[349824550,1737453041524,-638.77765656,0.00019178,2]
[349824551,1737453041534,-2010.66,0.00019178,2]
[349824552,1737453041543,-500.0,0.00019178,2]
[349824553,1737453041552,-500.0,0.00019178,2]
[349824554,1737453041562,-500.0,0.00019178,2]
[349824555,1737453041571,-500.0,0.00019178,2]
[349824556,1737453041581,-685.44,0.00019178,2]
[349824557,1737453041590,-500.0,0.00019178,2]
[349824558,1737453041599,-500.0,0.00019178,2]
[349824559,1737453041608,-505.27091836,0.00019178,2]
[349824560,1737453041617,-973.66,0.00019178,2]
[349824561,1737453041626,-500.0,0.00019178,2]
[349824562,1737453041635,-502.78833435,0.00019178,2]
[349824563,1737453041644,-500.0,0.00019178,2]
[349824564,1737453041656,-500.0,0.00019178,2]
[349824565,1737453041665,-500.0,0.00019178,2]
[349824566,1737453041675,-500.0,0.00019178,2]
[349824567,1737453041684,-500.0,0.00019178,2]
[349824568,1737453041693,-1123.99,0.00019178,2]
[349824569,1737453041703,-500.0,0.00019178,2]
[349824570,1737453041712,-500.0,0.00019178,2]
[349824571,1737453041721,-589.01,0.00019178,2]
[349824572,1737453041731,-500.0,0.00019178,2]
[349824573,1737453041743,-500.0,0.00019178,2]
[349824574,1737453041752,-500.0,0.00019178,2]
[349824575,1737453041761,-1065.57,0.00019178,2]
[349824576,1737453041771,-500.0,0.00019178,2]
[349824577,1737453041781,-500.0,0.00019178,2]
[349824578,1737453041791,-500.0,0.00019178,2]
[349824579,1737453041800,-984.06,0.00019178,2]
[349824580,1737453041810,-488.3677393,0.00019178,2]
[349824581,1737453041819,-506.18725543,0.00019178,2]
[349824582,1737453041828,-529.22496893,0.00019178,2]
[349824583,1737453041838,-1101.11,0.00019178,2]
[349824584,1737453041847,-510.47731179,0.00019178,2]
[349824585,1737453041857,-500.0,0.00019178,2]
[349824586,1737453041866,-500.0,0.00019178,2]
[349824587,1737453041875,-2866.42,0.00019178,2]
[349824588,1737453041884,-500.0,0.00019178,2]
[349824589,1737453041893,-771.9,0.00019178,2]
[349824590,1737453041905,-958.34,0.00019178,2]
[349824591,1737453041914,-500.0,0.00019178,2]
[349824592,1737453041924,-692.7,0.00019178,2]
[349824593,1737453041933,-500.0,0.00019178,2]
[349824594,1737453041942,-731.13,0.00019178,2]
[349824595,1737453041952,-165.582448,0.00019178,2]
[349824596,1737453041961,-500.0,0.00019178,2]
[349824597,1737453041970,-511.52331788,0.00019178,2]
[349824598,1737453041979,-238.74954698,0.00019178,2]
[349824599,1737453041988,-500.0,0.00019178,2]
[349824600,1737453041997,-500.0,0.00019178,2]
[349824601,1737453042006,-502.33600864,0.00019178,2]
[349824602,1737453042015,-701.64,0.00019178,2]
[349824603,1737453042024,-500.0,0.00019178,2]
[349824604,1737453042033,-536.64715515,0.00019178,2]
[349824605,1737453042043,-500.0,0.00019178,2]
[349824606,1737453042053,-500.0,0.00019178,2]
[349824607,1737453042062,-904.45,0.00019178,2]
[349824608,1737453042071,-1764.52,0.00019178,2]
[349824609,1737453042080,-93.17485489,0.00019178,2]
[349824610,1737453042903,-433.64450292,0.00013883,2]
[349824611,1737453042913,-4261.67696867,0.00014422,2]
[349824612,1737453042922,-406.82514511,0.00019178,2]
[349824613,1737453042932,-500.0,0.00019178,2]
[349824614,1737453042941,-500.0,0.00019178,2]
[349824615,1737453042951,-895.45,0.00019178,2]
[349824616,1737453042960,-1026.43,0.00019178,2]
[349824617,1737453042970,-500.0,0.00019178,2]
[349824618,1737453042979,-500.0,0.00019178,2]
[349824619,1737453042988,-500.0,0.00019178,2]
[349824620,1737453042998,-190.54269516,0.00019178,2]
[349824621,1737453043007,-2756.16,0.00019178,2]
[349824622,1737453043016,-1553.04,0.00019178,2]
[349824624,1737453043025,-500.0,0.00019178,2]
[349824625,1737453043034,-500.0,0.00019178,2]
[349824628,1737453043044,-500.0,0.00019178,2]
[349824629,1737453043053,-500.0,0.00019178,2]
[349824630,1737453043062,-500.0,0.00019178,2]
[349824631,1737453043072,-500.0,0.00019178,2]
[349824632,1737453043081,-500.0,0.00019178,2]
[349824633,1737453043090,-1028.9569752,0.00019178,2]
[349824636,1737453043114,-468.54598073,0.00019178,2]
[349824637,1737453043125,-549.47704407,0.00019178,2]
[349824638,1737453043134,-162.733606,0.00019178,2]
[349824639,1737453043143,-500.0,0.00019178,2]
[349824640,1737453043155,-500.0,0.00019178,2]
[349824641,1737453043165,-2545.78,0.00019178,2]
[349824642,1737453043174,-500.0,0.00019178,2]
[349824643,1737453043184,-521.4766754,0.00019178,2]
[349824644,1737453043194,-500.0,0.00019178,2]
[349824645,1737453043203,-500.0,0.00019178,2]
[349824646,1737453043213,-500.0,0.00019178,2]
[349824647,1737453043222,-2648.9,0.00019178,2]
[349824648,1737453043231,-500.0,0.00019178,2]
[349824649,1737453043241,-509.98193798,0.00019178,2]
[349824650,1737453043250,-518.34871144,0.00019178,2]
[349824651,1737453043260,-500.0,0.00019178,2]
[349824652,1737453043269,-500.0,0.00019178,2]
[349824653,1737453043278,-500.0,0.00019178,2]
[349824654,1737453043287,-771.88,0.00019178,2]
[349824655,1737453043297,-500.0,0.00019178,2]
[349824656,1737453043306,-500.0,0.00019178,2]
[349824657,1737453043315,-500.0,0.00019178,2]
[349824659,1737453043324,-500.0,0.00019178,2]
[349824661,1737453043333,-1252.0,0.00019178,2]
[349824663,1737453043342,-500.0,0.00019178,2]
[349824664,1737453043352,-500.0,0.00019178,2]
[349824665,1737453043361,-500.0,0.00019178,2]
[349824666,1737453043371,-2167.31,0.00019178,2]
[349824667,1737453043380,-500.0,0.00019178,2]
[349824668,1737453043389,-500.0,0.00019178,2]
[349824669,1737453043401,-687.19,0.00019178,2]
[349824670,1737453043410,-507.25012307,0.00019178,2]
[349824671,1737453043420,-500.0,0.00019178,2]
[349824672,1737453043429,-1932.68,0.00019178,2]
[349824673,1737453043439,-500.0,0.00019178,2]
[349824674,1737453043449,-620.48,0.00019178,2]
[349824675,1737453043458,-502.861357,0.00019178,2]
[349824676,1737453043467,-504.35969917,0.00019178,2]
[349824677,1737453043477,-500.0,0.00019178,2]
[349824678,1737453043487,-500.0,0.00019178,2]
[349824679,1737453043496,-504.42674643,0.00019178,2]
[349824680,1737453043506,-500.0,0.00019178,2]
[349824681,1737453043515,-500.0,0.00019178,2]
[349824682,1737453043524,-500.0,0.00019178,2]
[349824683,1737453043534,-500.0,0.00019178,2]
[349824684,1737453043543,-500.0,0.00019178,2]
[349824685,1737453043552,-61161.24159944,0.00019178,2]
[349824686,1737453043564,-71918.86871913,0.00019178,2]
[349824687,1737453043573,-1450.0,0.000192,3]
[349824688,1737453043583,-200.35494415,0.00019221,2]
[349824689,1737453043593,-37706.63317993,0.00019222,2]
[349824690,1737453043602,-667.57,0.00019242,30]
[349824691,1737453043611,-500.0,0.0001935,2]
[349824692,1737453043620,-591.79,0.0001935,2]
[349824693,1737453043629,-898.45,0.0001935,2]
[349824694,1737453043639,-1154.75,0.0001935,2]
[349824695,1737453043650,-500.0,0.0001935,2]
[349824696,1737453043661,-1000.0,0.0001935,2]
[349824697,1737453043671,-1093.7,0.0001935,2]
[349824698,1737453043680,-545.47,0.0001935,2]
[349824699,1737453043689,-500.0,0.0001935,2]
[349824700,1737453043698,-1476.07,0.0001935,2]
[349824701,1737453043707,-500.0,0.0001935,2]
[349824702,1737453043716,-198.92480568,0.00019352,2]
[349824703,1737453043726,-1419.75885728,0.00019352,2]
[349824704,1737453043736,-12829.19937418,0.0001938,2]
[349824705,1737453043748,-200.35494415,0.000194,2]
[349824706,1737453043757,-600.75356257,0.0001945,2]
[349824707,1737453043767,-500.0,0.0001945,2]
[349824708,1737453043777,-500.0,0.00019451,2]
[349824709,1737453043787,-500.0,0.00019452,2]
[349824710,1737453043796,-500.0,0.00019452,2]
[349824711,1737453043805,-500.0,0.00019452,2]
[349824712,1737453043817,-500.0,0.00019452,2]
[349824713,1737453043827,-500.0,0.00019452,2]
[349824714,1737453043837,-502.38769835,0.00019452,2]
[349824715,1737453043846,-500.0,0.00019452,2]
[349824716,1737453043855,-500.0,0.00019452,2]
[349824717,1737453043864,-500.0,0.00019452,2]
[349824718,1737453043873,-500.0,0.00019452,2]
[349824719,1737453043883,-500.0,0.00019452,2]
[349824720,1737453043892,-500.0,0.00019452,2]
[349824721,1737453043904,-1852.7,0.00019452,2]
[349824722,1737453043913,-500.0,0.00019452,2]
[349824723,1737453043922,-500.0,0.00019452,2]
[349824724,1737453043932,-500.0,0.00019452,2]
[349824725,1737453043941,-500.0,0.00019452,2]
[349824726,1737453043950,-508.48703462,0.00019452,2]
[349824727,1737453043959,-500.0,0.00019452,2]
[349824728,1737453043969,-500.0,0.00019452,2]
[349824729,1737453043978,-500.0,0.00019452,2]
[349824730,1737453043988,-500.0,0.00019452,2]
[349824731,1737453043997,-519.40915738,0.00019452,2]
[349824732,1737453044006,-500.0,0.00019452,2]
[349824733,1737453044015,-500.0,0.00019452,2]
[349824734,1737453044024,-500.0,0.00019452,2]
[349824735,1737453044033,-500.0,0.00019452,2]
[349824736,1737453044043,-268.40282724,0.00019452,2]
[349824737,1737453044052,-500.0,0.00019452,2]
[349824738,1737453044063,-500.0,0.00019452,2]
[349824739,1737453044072,-500.0,0.00019452,2]
[349824740,1737453044082,-500.0,0.00019452,2]
[349824741,1737453044091,-500.0,0.00019452,2]
[349824742,1737453044100,-500.0,0.00019452,2]
[349824743,1737453044110,-511.39253591,0.00019452,2]
[349824744,1737453044119,-500.0,0.00019452,2]
[349824745,1737453044128,-500.0,0.00019452,2]
[349824746,1737453044138,-500.0,0.00019452,2]
[349824747,1737453044147,-500.0,0.00019452,2]
[349824748,1737453044267,-500.0,0.00019452,2]
[349824749,1737453044276,-321.46,0.00019452,2]
[349824750,1737453044286,-500.0,0.00019452,2]
[349824751,1737453044295,-297.75202627,0.00019452,2]
[349824752,1737453044304,-500.0,0.00019452,2]
[349824753,1737453044313,-500.0,0.00019452,2]
[349824754,1737453044322,-575.72,0.00019452,2]
[349824755,1737453044331,-500.0,0.00019452,2]
[349824756,1737453044340,-500.0,0.00019452,2]
[349824757,1737453044350,-500.0,0.00019452,2]
[349824758,1737453044359,-500.0,0.00019452,2]
[349824759,1737453044368,-500.0,0.00019452,2]
[349824760,1737453044378,-500.0,0.00019452,2]
[349824761,1737453044387,-500.0,0.00019452,2]
[349824762,1737453044397,-500.0,0.00019452,2]
[349824763,1737453044408,-500.0,0.00019452,2]
[349824764,1737453044418,-500.0,0.00019452,2]
[349824765,1737453044427,-500.0,0.00019452,2]
[349824766,1737453044437,-383.05030952,0.00019452,2]
[349824767,1737453044447,-502.15942636,0.00019452,2]
[349824768,1737453044457,-211.0678471,0.00019452,2]
[349824769,1737453044466,-500.0,0.00019452,2]
[349824770,1737453044476,-500.0,0.00019452,2]
[349824771,1737453044485,-500.0,0.00019452,2]
[349824772,1737453044495,-500.0,0.00019452,2]
[349824773,1737453044504,-769.26,0.00019452,2]
[349824774,1737453044515,-500.0,0.00019452,2]
[349824775,1737453044526,-500.0,0.00019452,2]
[349824776,1737453044535,-500.0,0.00019452,2]
[349824778,1737453044545,-500.0,0.00019452,2]
[349824779,1737453044555,-500.0,0.00019452,2]
[349824780,1737453044565,-500.0,0.00019452,2]
[349824781,1737453044575,-500.0,0.00019452,2]
[349824782,1737453044586,-577.58,0.00019452,2]
[349824783,1737453044596,-500.0,0.00019452,2]
[349824784,1737453044606,-500.0,0.00019452,2]
[349824785,1737453044615,-500.0,0.00019452,2]
[349824786,1737453044624,-500.0,0.00019452,2]
[349824787,1737453044634,-499.86884597,0.00019452,2]
[349824788,1737453044644,-500.0,0.00019452,2]
[349824789,1737453044656,-500.0,0.00019452,2]
[349824791,1737453044666,-500.0,0.00019452,2]
[349824793,1737453044676,-500.0,0.00019452,2]
[349824795,1737453044686,-500.0,0.00019452,2]
[349824796,1737453044696,-529.19847714,0.00019452,2]
[349824798,1737453044705,-500.0,0.00019452,2]
[349824799,1737453044715,-500.0,0.00019452,2]
[349824800,1737453044724,-500.0,0.00019452,2]
[349824801,1737453044734,-500.0,0.00019452,2]
[349824802,1737453044747,-500.0,0.00019452,2]
[349824804,1737453044757,-500.0,0.00019452,2]
[349824805,1737453044766,-530.35871356,0.00019452,2]
[349824808,1737453044776,-500.0,0.00019452,2]
[349824809,1737453044786,-500.0,0.00019452,2]
[349824810,1737453044795,-500.0,0.00019452,2]
[349824811,1737453044804,-500.0,0.00019452,2]
[349824812,1737453044815,-500.0,0.00019452,2]
[349824813,1737453044825,-500.0,0.00019452,2]
[349824814,1737453044835,-500.0,0.00019452,2]
[349824815,1737453044844,-500.0,0.00019452,2]
[349824816,1737453044853,-500.0,0.00019452,2]
[349824817,1737453044862,-500.0,0.00019452,2]
[349824818,1737453044871,-500.0,0.00019452,2]
[349824819,1737453044880,-500.0,0.00019452,2]
[349824820,1737453044890,-500.0,0.00019452,2]
[349824821,1737453044899,-500.0,0.00019452,2]
[349824822,1737453044911,-515.04958124,0.00019452,2]
[349824823,1737453044921,-500.0,0.00019452,2]
[349824824,1737453044930,-519.89,0.00019452,2]
[349824825,1737453044939,-522.63,0.00019452,2]
[349824826,1737453044949,-500.0,0.00019452,2]
[349824827,1737453044959,-500.0,0.00019452,2]
[349824828,1737453044968,-500.0,0.00019452,2]
[349824829,1737453044978,-500.0,0.00019452,2]
[349824830,1737453044988,-500.0,0.00019452,2]
[349824831,1737453044997,-390.32248392,0.00019452,2]
[349824832,1737453045007,-500.0,0.00019452,2]
[349824833,1737453045016,-500.0,0.00019452,2]
[349824834,1737453045026,-500.0,0.00019452,2]
[349824835,1737453045036,-500.0,0.00019452,2]
[349824836,1737453045046,-500.0,0.00019452,2]
[349824837,1737453045055,-500.0,0.00019452,2]
[349824838,1737453045064,-500.0,0.00019452,2]
[349824839,1737453045073,-500.0,0.00019452,2]
[349824840,1737453045082,-500.0,0.00019452,2]
[349824841,1737453045091,-1055.98,0.00019452,2]
[349824842,1737453045101,-500.0,0.00019452,2]
[349824843,1737453045110,-922.8,0.00019452,2]
[349824844,1737453045119,-500.0,0.00019452,2]
[349824845,1737453045128,-500.0,0.00019452,2]
[349824846,1737453045137,-500.0,0.00019452,2]
[349824847,1737453045147,-500.0,0.00019452,2]
[349824848,1737453045158,-500.0,0.00019452,2]
[349824849,1737453045168,-500.0,0.00019452,2]
[349824850,1737453045177,-500.0,0.00019452,2]
[349824851,1737453045187,-500.0,0.00019452,2]
[349824852,1737453045196,-500.0,0.00019452,2]
[349824853,1737453045206,-500.0,0.00019452,2]
[349824854,1737453045215,-500.0,0.00019452,2]
[349824855,1737453045224,-698.92,0.00019452,2]
[349824856,1737453045233,-500.0,0.00019452,2]
[349824857,1737453045242,-500.0,0.00019452,2]
[349824858,1737453045252,-500.0,0.00019452,2]
[349824859,1737453045261,-500.0,0.00019452,2]
[349824860,1737453045271,-500.0,0.00019452,2]
[349824861,1737453045280,-500.0,0.00019452,2]
[349824862,1737453045290,-500.0,0.00019452,2]
[349824863,1737453045298,-500.0,0.00019452,2]
[349824864,1737453045307,-500.0,0.00019452,2]
[349824865,1737453045318,-500.0,0.00019452,2]
[349824866,1737453045328,-500.0,0.00019452,2]
[349824867,1737453045338,-500.0,0.00019452,2]
[349824868,1737453045348,-500.0,0.00019452,2]
[349824869,1737453045359,-500.0,0.00019452,2]
[349824870,1737453045370,-500.0,0.00019452,2]
[349824871,1737453045381,-506.69552258,0.00019452,2]
[349824872,1737453045391,-500.0,0.00019452,2]
[349824873,1737453045402,-500.0,0.00019452,2]
[349824874,1737453045411,-500.0,0.00019452,2]
[349824875,1737453045421,-949.13,0.00019452,2]
[349824876,1737453045431,-500.0,0.00019452,2]
[349824877,1737453045442,-500.0,0.00019452,2]
[349824878,1737453045451,-632.61,0.00019452,2]
[349824879,1737453045461,-500.0,0.00019452,2]
[349824880,1737453045471,-500.0,0.00019452,2]
[349824881,1737453045480,-500.0,0.00019452,2]
[349824882,1737453045490,-500.0,0.00019452,2]
[349824883,1737453045499,-500.0,0.00019452,2]
[349824884,1737453045509,-500.0,0.00019452,2]
[349824885,1737453045519,-500.0,0.00019452,2]
[349824886,1737453045528,-500.0,0.00019452,2]
[349824887,1737453045537,-500.0,0.00019452,2]
[349824888,1737453045547,-500.0,0.00019452,2]
[349824889,1737453045556,-500.0,0.00019452,2]
[349824890,1737453045565,-500.0,0.00019452,2]
[349824891,1737453045574,-500.0,0.00019452,2]
[349824892,1737453045583,-500.0,0.00019452,2]
[349824893,1737453045592,-500.0,0.00019452,2]
[349824894,1737453045602,-500.0,0.00019452,2]
[349824895,1737453045611,-500.0,0.00019452,2]
[349824896,1737453045620,-500.0,0.00019452,2]
[349824897,1737453045629,-500.0,0.00019452,2]
[349824898,1737453045638,-500.0,0.00019452,2]
[349824899,1737453045648,-500.0,0.00019452,2]
[349824900,1737453045660,-500.0,0.00019452,2]
[349824901,1737453045669,-500.0,0.00019452,2]
[349824902,1737453045679,-500.37,0.00019452,2]
[349824903,1737453045688,-500.0,0.00019452,2]
[349824904,1737453045697,-500.0,0.00019452,2]
[349824905,1737453045706,-500.0,0.00019452,2]
[349824906,1737453045715,-500.0,0.00019452,2]
[349824907,1737453045725,-534.504669,0.00019452,2]
[349824908,1737453045734,-500.0,0.00019452,2]
[349824909,1737453045746,-602.49,0.00019452,2]
[349824910,1737453045755,-500.0,0.00019452,2]
[349824911,1737453045764,-500.0,0.00019452,2]
[349824912,1737453045774,-500.0,0.00019452,2]
[349824913,1737453045784,-500.0,0.00019452,2]
[349824914,1737453045794,-500.0,0.00019452,2]
[349824915,1737453045803,-500.0,0.00019452,2]
[349824916,1737453045813,-500.0,0.00019452,2]
[349824917,1737453045824,-500.0,0.00019452,2]
[349824918,1737453045834,-500.0,0.00019452,2]
[349824919,1737453045843,-500.0,0.00019452,2]
[349824920,1737453045852,-500.0,0.00019452,2]
[349824921,1737453045862,-503.2525519,0.00019452,2]
[349824922,1737453045871,-500.0,0.00019452,2]
[349824923,1737453045880,-500.0,0.00019452,2]
[349824924,1737453045890,-500.0,0.00019452,2]
[349824925,1737453045899,-500.0,0.00019452,2]
[349824926,1737453045909,-500.0,0.00019452,2]
[349824927,1737453045919,-855.720455,0.00019452,2]
[349824928,1737453045929,-515.35,0.00019452,2]
[349824929,1737453045938,-500.0,0.00019452,2]
[349824930,1737453045947,-500.0,0.00019452,2]
[349824931,1737453045956,-500.0,0.00019452,2]
[349824932,1737453045965,-500.0,0.00019452,2]
[349824933,1737453045975,-500.0,0.00019452,2]
[349824934,1737453045984,-500.0,0.00019452,2]
[349824935,1737453045994,-500.0,0.00019452,2]
[349824936,1737453046003,-500.0,0.00019452,2]
[349824937,1737453046012,-500.0,0.00019452,2]
[349824938,1737453046121,-500.0,0.00019452,2]
[349824940,1737453046131,-500.0,0.00019452,2]
[349824942,1737453046141,-506.13810389,0.00019452,2]
[349824943,1737453046152,-500.0,0.00019452,2]
[349824944,1737453046161,-500.0,0.00019452,2]
[349824945,1737453046171,-500.0,0.00019452,2]
[349824946,1737453046180,-500.0,0.00019452,2]
[349824947,1737453046190,-500.0,0.00019452,2]
[349824948,1737453046199,-500.0,0.00019452,2]
[349824949,1737453046208,-500.0,0.00019452,2]
[349824950,1737453046218,-500.0,0.00019452,2]
[349824951,1737453046227,-500.0,0.00019452,2]
[349824952,1737453046236,-500.0,0.00019452,2]
[349824953,1737453046246,-500.0,0.00019452,2]
[349824954,1737453046255,-500.0,0.00019452,2]
[349824955,1737453046265,-500.0,0.00019452,2]
[349824956,1737453046274,-500.0,0.00019452,2]
[349824957,1737453046284,-500.0,0.00019452,2]
[349824958,1737453046293,-500.0,0.00019452,2]
[349824959,1737453046303,-500.0,0.00019452,2]
[349824960,1737453046312,-500.0,0.00019452,2]
[349824961,1737453046322,-500.0,0.00019452,2]
[349824962,1737453046331,-500.0,0.00019452,2]
[349824963,1737453046340,-500.0,0.00019452,2]
[349824964,1737453046349,-500.0,0.00019452,2]
[349824965,1737453046359,-179.70430011,0.00019452,2]
[349824966,1737453046368,-500.0,0.00019452,2]
[349824967,1737453046378,-500.0,0.00019452,2]
[349824968,1737453046387,-500.0,0.00019452,2]